[Event "Titled Tuesday Blitz February 22 Early 2022"]
[White "Langner, Ladislav"]
[Black "Ambartsumova, Karina"]
[WhiteFideId "300403"]
[BlackFideId "4166299"]
[WhiteElo "2346"]
[BlackElo "2262"]
[Result "1/2-1/2"]
[Round "09"]
[TimeControl "180+1"]
[Date "2022.02.22"]
[WhiteClock "0:01:10"]
[BlackClock "0:00:11"]

1. e4 {[%clk 0:03:00]}  c5 {[%clk 0:02:56]} 2. c3 {[%clk 0:03:00]}  d5 {[%clk 0:02:52]} 3. exd5 {[%clk 0:03:01]}  Qxd5 {[%clk 0:02:53]} 4. d4 {[%clk 0:03:01]}  Nc6 {[%clk 0:02:53]} 5. Nf3 {[%clk 0:03:01]}  Bf5 {[%clk 0:02:53]} 6. Na3 {[%clk 0:02:59]}  e6 {[%clk 0:02:33]} 7. Nb1 {[%clk 0:02:57]}  Nf6 {[%clk 0:02:29]} 8. Na3 {[%clk 0:02:53]}  Be7 {[%clk 0:02:26]} 9. Be3 {[%clk 0:02:51]}  O-O {[%clk 0:02:15]} 10. dxc5 {[%clk 0:02:48]}  Qxd1+ {[%clk 0:02:14]} 11. Rxd1 {[%clk 0:02:48]}  Nd5 {[%clk 0:02:13]} 12. Bd4 {[%clk 0:02:25]}  Rac8 {[%clk 0:01:50]} 13. Nb5 {[%clk 0:02:19]}  Rfd8 {[%clk 0:01:45]} 14. Be2 {[%clk 0:02:12]}  a6 {[%clk 0:01:41]} 15. Nd6 {[%clk 0:02:08]}  Bxd6 {[%clk 0:01:40]} 16. cxd6 {[%clk 0:02:09]}  Nxd4 {[%clk 0:01:16]} 17. Nxd4 {[%clk 0:02:08]}  Be4 {[%clk 0:01:16]} 18. f3 {[%clk 0:02:05]}  Bg6 {[%clk 0:01:15]} 19. Kf2 {[%clk 0:02:03]}  Rxd6 {[%clk 0:01:14]} 20. Nb3 {[%clk 0:02:02]}  Rdd8 {[%clk 0:01:11]} 21. Rd2 {[%clk 0:01:58]}  Kf8 {[%clk 0:00:56]} 22. Rhd1 {[%clk 0:01:57]}  Ke7 {[%clk 0:00:53]} 23. g3 {[%clk 0:01:56]}  f6 {[%clk 0:00:32]} 24. f4 {[%clk 0:01:54]}  Be8 {[%clk 0:00:28]} 25. Bf3 {[%clk 0:01:52]}  Bc6 {[%clk 0:00:19]} 26. Nd4 {[%clk 0:01:52]}  h6 {[%clk 0:00:13]} 27. Nxc6+ {[%clk 0:01:46]}  bxc6 {[%clk 0:00:13]} 28. c4 {[%clk 0:01:41]}  Nb6 {[%clk 0:00:07]} 29. Rxd8 {[%clk 0:01:34]}  Rxd8 {[%clk 0:00:08]} 30. Rxd8 {[%clk 0:01:34]}  Kxd8 {[%clk 0:00:09]} 31. Bxc6 {[%clk 0:01:32]}  Nxc4 {[%clk 0:00:09]} 32. b3 {[%clk 0:01:30]}  Nd6 {[%clk 0:00:08]} 33. Ke3 {[%clk 0:01:27]}  Kc7 {[%clk 0:00:09]} 34. Bf3 {[%clk 0:01:24]}  e5 {[%clk 0:00:09]} 35. a3 {[%clk 0:01:15]}  Kb6 {[%clk 0:00:09]} 36. Be2 {[%clk 0:01:12]}  a5 {[%clk 0:00:09]} 37. Kd3 {[%clk 0:01:11]}  Kc5 {[%clk 0:00:09]} 38. Kc3 {[%clk 0:01:11]}  Ne4+ {[%clk 0:00:09]} 39. Kd3 {[%clk 0:01:10]}  Nd6 {[%clk 0:00:10]} 40. Kc3 {[%clk 0:01:09]}  Ne4+ {[%clk 0:00:11]} 41. Kd3 {[%clk 0:01:10]}  Nd6 {[%clk 0:00:11]} 1/2-1/2


[Site "https://www.chess.com"]

[Event "Titled Tuesday Blitz February 22 Early 2022"]
[White "Lazavik, Denis"]
[Black "Kovalenko, Igor"]
[WhiteFideId "13515110"]
[BlackFideId "14117908"]
[WhiteElo "2436"]
[BlackElo "2560"]
[Result "0-1"]
[Round "09"]
[TimeControl "180+1"]
[Date "2022.02.22"]
[WhiteClock "0:00:02"]
[BlackClock "0:00:17"]

1. d4 {[%clk 0:03:00]}  Nf6 {[%clk 0:02:32]} 2. c4 {[%clk 0:03:00]}  e6 {[%clk 0:02:32]} 3. Nf3 {[%clk 0:03:00]}  b6 {[%clk 0:02:32]} 4. g3 {[%clk 0:02:59]}  Ba6 {[%clk 0:02:30]} 5. b3 {[%clk 0:02:58]}  d5 {[%clk 0:02:30]} 6. Bg2 {[%clk 0:02:47]}  Bb4+ {[%clk 0:02:26]} 7. Bd2 {[%clk 0:02:46]}  Bxd2+ {[%clk 0:02:26]} 8. Qxd2 {[%clk 0:02:44]}  O-O {[%clk 0:02:27]} 9. O-O {[%clk 0:02:42]}  Nbd7 {[%clk 0:02:25]} 10. cxd5 {[%clk 0:02:37]}  Ne4 {[%clk 0:02:23]} 11. Qc2 {[%clk 0:02:34]}  exd5 {[%clk 0:02:24]} 12. Rd1 {[%clk 0:02:32]}  Re8 {[%clk 0:02:20]} 13. e3 {[%clk 0:02:31]}  Ndf6 {[%clk 0:02:19]} 14. Ne5 {[%clk 0:02:29]}  c5 {[%clk 0:02:17]} 15. f3 {[%clk 0:01:53]}  Nd6 {[%clk 0:01:55]} 16. Nc3 {[%clk 0:01:52]}  Rc8 {[%clk 0:01:54]} 17. Rac1 {[%clk 0:01:49]}  Rc7 {[%clk 0:01:44]} 18. Qd2 {[%clk 0:01:34]}  Bb7 {[%clk 0:01:15]} 19. Ne2 {[%clk 0:01:18]}  g6 {[%clk 0:01:09]} 20. Nf4 {[%clk 0:01:14]}  Nf5 {[%clk 0:01:06]} 21. Bh3 {[%clk 0:01:06]}  Ng7 {[%clk 0:00:53]} 22. Bf1 {[%clk 0:01:02]}  Qe7 {[%clk 0:00:47]} 23. Kf2 {[%clk 0:00:44]}  Rf8 {[%clk 0:00:41]} 24. Ned3 {[%clk 0:00:40]}  g5 {[%clk 0:00:37]} 25. Ne2 {[%clk 0:00:36]}  Ne6 {[%clk 0:00:18]} 26. Bg2 {[%clk 0:00:32]}  Rfc8 {[%clk 0:00:17]} 27. Ne5 {[%clk 0:00:30]}  Ba6 {[%clk 0:00:18]} 28. Ng1 {[%clk 0:00:14]}  h6 {[%clk 0:00:18]} 29. Bh3 {[%clk 0:00:12]}  Kg7 {[%clk 0:00:16]} 30. Bf5 {[%clk 0:00:12]}  Re8 {[%clk 0:00:15]} 31. Re1 {[%clk 0:00:09]}  Bc8 {[%clk 0:00:14]} 32. Bb1 {[%clk 0:00:07]}  Nf8 {[%clk 0:00:14]} 33. Ne2 {[%clk 0:00:07]}  N8d7 {[%clk 0:00:13]} 34. Nxd7 {[%clk 0:00:07]}  Bxd7 {[%clk 0:00:14]} 35. dxc5 {[%clk 0:00:07]}  bxc5 {[%clk 0:00:14]} 36. Nc3 {[%clk 0:00:07]}  Be6 {[%clk 0:00:14]} 37. Kg2 {[%clk 0:00:07]}  Rd8 {[%clk 0:00:14]} 38. Qc2 {[%clk 0:00:07]}  g4 {[%clk 0:00:14]} 39. f4 {[%clk 0:00:06]}  d4 {[%clk 0:00:15]} 40. exd4 {[%clk 0:00:06]}  cxd4 {[%clk 0:00:15]} 41. Qd2 {[%clk 0:00:03]}  Rxc3 {[%clk 0:00:15]} 42. Rxc3 {[%clk 0:00:03]}  dxc3 {[%clk 0:00:16]} 43. Qxc3 {[%clk 0:00:04]}  Qb7+ {[%clk 0:00:16]} 44. Kg1 {[%clk 0:00:04]}  Rc8 {[%clk 0:00:16]} 45. Qe3 {[%clk 0:00:03]}  Qd5 {[%clk 0:00:15]} 46. f5 {[%clk 0:00:03]}  Bd7 {[%clk 0:00:14]} 47. Qf4 {[%clk 0:00:02]}  Qc5+ {[%clk 0:00:15]} 48. Qf2 {[%clk 0:00:03]}  Qxf2+ {[%clk 0:00:15]} 49. Kxf2 {[%clk 0:00:04]}  Rc3 {[%clk 0:00:15]} 50. Re5 {[%clk 0:00:03]}  Rc1 {[%clk 0:00:14]} 51. Bd3 {[%clk 0:00:03]}  Rh1 {[%clk 0:00:14]} 52. Ra5 {[%clk 0:00:03]}  Rxh2+ {[%clk 0:00:14]} 53. Ke3 {[%clk 0:00:04]}  Rg2 {[%clk 0:00:14]} 54. Kf4 {[%clk 0:00:04]}  Rf2+ {[%clk 0:00:15]} 55. Ke5 {[%clk 0:00:03]}  Rf3 {[%clk 0:00:15]} 56. Be2 {[%clk 0:00:03]}  Re3+ {[%clk 0:00:16]} 57. Kf4 {[%clk 0:00:02]}  Rxe2 {[%clk 0:00:17]} 0-1


[Site "https://www.chess.com"]

[Event "Titled Tuesday Blitz February 22 Early 2022"]
[White "Manukian, Artak"]
[Black "Tasev, Dejan"]
[WhiteFideId "13301373"]
[BlackFideId "936618"]
[WhiteElo "2495"]
[BlackElo "2253"]
[Result "1-0"]
[Round "09"]
[TimeControl "180+1"]
[Date "2022.02.22"]
[WhiteClock "0:00:04"]
[BlackClock "0:00:23"]

1. e4 {[%clk 0:01:59]}  c6 {[%clk 0:02:58]} 2. d4 {[%clk 0:01:59]}  d5 {[%clk 0:02:59]} 3. e5 {[%clk 0:01:59]}  Bf5 {[%clk 0:02:58]} 4. c4 {[%clk 0:02:00]}  e6 {[%clk 0:02:58]} 5. Nc3 {[%clk 0:01:59]}  Ne7 {[%clk 0:02:58]} 6. Nf3 {[%clk 0:01:59]}  h6 {[%clk 0:02:58]} 7. Qb3 {[%clk 0:01:54]}  Qb6 {[%clk 0:02:53]} 8. c5 {[%clk 0:01:54]}  Qc7 {[%clk 0:02:50]} 9. h3 {[%clk 0:01:52]}  g5 {[%clk 0:02:50]} 10. Ne2 {[%clk 0:01:46]}  Nd7 {[%clk 0:02:48]} 11. Ng3 {[%clk 0:01:44]}  Bg6 {[%clk 0:02:48]} 12. Bd3 {[%clk 0:01:44]}  b6 {[%clk 0:02:29]} 13. cxb6 {[%clk 0:01:43]}  axb6 {[%clk 0:02:26]} 14. Be3 {[%clk 0:01:36]}  c5 {[%clk 0:02:19]} 15. Bb5 {[%clk 0:01:25]}  c4 {[%clk 0:02:14]} 16. Qd1 {[%clk 0:01:15]}  Nc6 {[%clk 0:02:08]} 17. O-O {[%clk 0:01:13]}  Nb4 {[%clk 0:02:00]} 18. a4 {[%clk 0:01:03]}  Be7 {[%clk 0:01:52]} 19. Qd2 {[%clk 0:00:50]}  Nc2 {[%clk 0:01:48]} 20. Rac1 {[%clk 0:00:43]}  Nxe3 {[%clk 0:01:45]} 21. Qxe3 {[%clk 0:00:43]}  O-O {[%clk 0:01:39]} 22. b3 {[%clk 0:00:42]}  Ba3 {[%clk 0:01:27]} 23. bxc4 {[%clk 0:00:22]}  Bxc1 {[%clk 0:01:26]} 24. Rxc1 {[%clk 0:00:23]}  Rfc8 {[%clk 0:01:24]} 25. h4 {[%clk 0:00:17]}  dxc4 {[%clk 0:01:22]} 26. Rxc4 {[%clk 0:00:17]}  Qxc4 {[%clk 0:01:21]} 27. Bxc4 {[%clk 0:00:16]}  Rxc4 {[%clk 0:01:22]} 28. hxg5 {[%clk 0:00:17]}  h5 {[%clk 0:01:22]} 29. Ne4 {[%clk 0:00:13]}  Raxa4 {[%clk 0:01:18]} 30. Nf6+ {[%clk 0:00:13]}  Nxf6 {[%clk 0:01:07]} 31. gxf6 {[%clk 0:00:14]}  Kf8 {[%clk 0:01:07]} 32. Qh6+ {[%clk 0:00:13]}  Ke8 {[%clk 0:01:08]} 33. Qh8+ {[%clk 0:00:13]}  Kd7 {[%clk 0:01:08]} 34. Qb8 {[%clk 0:00:13]}  Rc7 {[%clk 0:01:01]} 35. Qxb6 {[%clk 0:00:12]}  Ra1+ {[%clk 0:00:58]} 36. Kh2 {[%clk 0:00:12]}  Ra2 {[%clk 0:00:57]} 37. Qd6+ {[%clk 0:00:11]}  Kc8 {[%clk 0:00:57]} 38. Qf8+ {[%clk 0:00:11]}  Kb7 {[%clk 0:00:56]} 39. Qb4+ {[%clk 0:00:12]}  Ka7 {[%clk 0:00:55]} 40. d5 {[%clk 0:00:12]}  exd5 {[%clk 0:00:54]} 41. Nd4 {[%clk 0:00:12]}  Rc4 {[%clk 0:00:49]} 42. Qe7+ {[%clk 0:00:08]}  Ka6 {[%clk 0:00:49]} 43. e6 {[%clk 0:00:06]}  Rxd4 {[%clk 0:00:47]} 44. exf7 {[%clk 0:00:06]}  Rh4+ {[%clk 0:00:47]} 45. Kg3 {[%clk 0:00:05]}  Rg4+ {[%clk 0:00:47]} 46. Kf3 {[%clk 0:00:06]}  Be4+ {[%clk 0:00:41]} 47. Ke3 {[%clk 0:00:05]}  d4+ {[%clk 0:00:39]} 48. Kxd4 {[%clk 0:00:03]}  Bb7+ {[%clk 0:00:36]} 49. Kc3 {[%clk 0:00:03]}  Rxf2 {[%clk 0:00:27]} 50. f8=Q {[%clk 0:00:02]}  Rff4 {[%clk 0:00:26]} 51. Qd6+ {[%clk 0:00:03]}  Ka7 {[%clk 0:00:24]} 52. Qc5+ {[%clk 0:00:04]}  Ka6 {[%clk 0:00:23]} 53. Qfd6+ {[%clk 0:00:04]} 1-0


[Site "https://www.chess.com"]

[Event "Titled Tuesday Blitz February 22 Early 2022"]
[White "Manukyan, Artyom"]
[Black "Barrientos, Sergio E"]
[WhiteFideId "13305786"]
[BlackFideId "4401824"]
[WhiteElo "2034"]
[BlackElo "2441"]
[Result "1/2-1/2"]
[Round "09"]
[TimeControl "180+1"]
[Date "2022.02.22"]
[WhiteClock "0:00:04"]
[BlackClock "0:00:11"]

1. e4 {[%clk 0:02:54]}  c6 {[%clk 0:02:55]} 2. d4 {[%clk 0:02:53]}  d5 {[%clk 0:02:54]} 3. exd5 {[%clk 0:02:54]}  cxd5 {[%clk 0:02:54]} 4. Bd3 {[%clk 0:02:54]}  Nc6 {[%clk 0:02:53]} 5. c3 {[%clk 0:02:55]}  Qc7 {[%clk 0:02:54]} 6. Ne2 {[%clk 0:02:55]}  Bg4 {[%clk 0:02:54]} 7. O-O {[%clk 0:02:55]}  e6 {[%clk 0:02:54]} 8. Qe1 {[%clk 0:02:55]}  Bd6 {[%clk 0:02:52]} 9. f3 {[%clk 0:02:56]}  Bh5 {[%clk 0:02:52]} 10. Qh4 {[%clk 0:02:56]}  Nf6 {[%clk 0:02:52]} 11. Bg5 {[%clk 0:02:55]}  Bg6 {[%clk 0:01:51]} 12. Bxg6 {[%clk 0:02:53]}  fxg6 {[%clk 0:01:52]} 13. Nd2 {[%clk 0:02:34]}  O-O {[%clk 0:01:48]} 14. Rae1 {[%clk 0:02:24]}  h6 {[%clk 0:01:46]} 15. Bf4 {[%clk 0:02:16]}  g5 {[%clk 0:01:41]} 16. Bxd6 {[%clk 0:02:15]}  Qxd6 {[%clk 0:01:42]} 17. Qg3 {[%clk 0:02:15]}  Qd7 {[%clk 0:01:39]} 18. Nc1 {[%clk 0:01:56]}  Nh5 {[%clk 0:01:34]} 19. Qf2 {[%clk 0:01:42]}  Nf4 {[%clk 0:01:33]} 20. Qe3 {[%clk 0:01:42]}  Rae8 {[%clk 0:01:29]} 21. Nd3 {[%clk 0:01:40]}  Qd6 {[%clk 0:01:22]} 22. Nxf4 {[%clk 0:01:38]}  Rxf4 {[%clk 0:01:19]} 23. Re2 {[%clk 0:01:26]}  Rf6 {[%clk 0:01:18]} 24. Rfe1 {[%clk 0:01:25]}  Ne7 {[%clk 0:01:16]} 25. Qe5 {[%clk 0:01:22]}  Qb6 {[%clk 0:01:15]} 26. Nf1 {[%clk 0:01:14]}  Ng6 {[%clk 0:01:14]} 27. Qe3 {[%clk 0:01:12]}  Nf4 {[%clk 0:01:13]} 28. Rd2 {[%clk 0:01:12]}  a5 {[%clk 0:01:09]} 29. Ng3 {[%clk 0:01:10]}  a4 {[%clk 0:01:08]} 30. Ne2 {[%clk 0:01:10]}  Ng6 {[%clk 0:01:06]} 31. Nc1 {[%clk 0:01:10]}  Kh8 {[%clk 0:00:55]} 32. Nd3 {[%clk 0:01:10]}  a3 {[%clk 0:00:50]} 33. b4 {[%clk 0:01:05]}  Qc7 {[%clk 0:00:47]} 34. Rc2 {[%clk 0:00:52]}  b6 {[%clk 0:00:46]} 35. Ne5 {[%clk 0:00:49]}  Nf4 {[%clk 0:00:46]} 36. b5 {[%clk 0:00:40]}  Ra8 {[%clk 0:00:39]} 37. Nc6 {[%clk 0:00:38]}  Ra4 {[%clk 0:00:38]} 38. Ne5 {[%clk 0:00:31]}  Ra5 {[%clk 0:00:36]} 39. g3 {[%clk 0:00:21]}  Ng6 {[%clk 0:00:30]} 40. Ng4 {[%clk 0:00:17]}  Rf7 {[%clk 0:00:20]} 41. Ne5 {[%clk 0:00:05]}  Nxe5 {[%clk 0:00:20]} 42. Qxe5 {[%clk 0:00:06]}  Qxe5 {[%clk 0:00:18]} 43. Rxe5 {[%clk 0:00:06]}  Rxb5 {[%clk 0:00:18]} 44. Kg2 {[%clk 0:00:06]}  Rb2 {[%clk 0:00:18]} 45. Ree2 {[%clk 0:00:06]}  Rxc2 {[%clk 0:00:17]} 46. Rxc2 {[%clk 0:00:07]}  Rc7 {[%clk 0:00:17]} 47. Kf2 {[%clk 0:00:07]}  b5 {[%clk 0:00:18]} 48. Ke3 {[%clk 0:00:08]}  b4 {[%clk 0:00:18]} 49. Kd3 {[%clk 0:00:09]}  bxc3 {[%clk 0:00:18]} 50. Rxc3 {[%clk 0:00:10]}  Ra7 {[%clk 0:00:18]} 51. Rc6 {[%clk 0:00:09]}  Rb7 {[%clk 0:00:17]} 52. Ra6 {[%clk 0:00:08]}  Rb2 {[%clk 0:00:17]} 53. Rxa3 {[%clk 0:00:08]}  Rxh2 {[%clk 0:00:18]} 54. Ke3 {[%clk 0:00:07]}  h5 {[%clk 0:00:18]} 55. Ra6 {[%clk 0:00:07]}  Kh7 {[%clk 0:00:17]} 56. Rxe6 {[%clk 0:00:07]}  Rxa2 {[%clk 0:00:17]} 57. Re5 {[%clk 0:00:08]}  Kh6 {[%clk 0:00:15]} 58. Rxd5 {[%clk 0:00:07]}  h4 {[%clk 0:00:15]} 59. gxh4 {[%clk 0:00:08]}  gxh4 {[%clk 0:00:16]} 60. Kf4 {[%clk 0:00:09]}  Rg2 {[%clk 0:00:14]} 61. Rd6+ {[%clk 0:00:07]}  Kh5 {[%clk 0:00:14]} 62. Rd5+ {[%clk 0:00:08]}  g5+ {[%clk 0:00:15]} 63. Ke3 {[%clk 0:00:08]}  h3 {[%clk 0:00:16]} 64. Rd8 {[%clk 0:00:06]}  Kh4 {[%clk 0:00:13]} 65. d5 {[%clk 0:00:06]}  Kg3 {[%clk 0:00:12]} 66. d6 {[%clk 0:00:06]}  Rg1 {[%clk 0:00:12]} 67. Ke2 {[%clk 0:00:05]}  Rg2+ {[%clk 0:00:12]} 68. Ke3 {[%clk 0:00:05]}  Rf2 {[%clk 0:00:12]} 69. Rf8 {[%clk 0:00:02]}  Rf1 {[%clk 0:00:12]} 70. d7 {[%clk 0:00:02]}  Rd1 {[%clk 0:00:10]} 71. d8=Q {[%clk 0:00:03]}  Rxd8 {[%clk 0:00:10]} 72. Rxd8 {[%clk 0:00:04]}  h2 {[%clk 0:00:11]} 73. Rh8 {[%clk 0:00:04]}  Kg2 {[%clk 0:00:10]} 74. Ke4 {[%clk 0:00:04]}  h1=Q {[%clk 0:00:09]} 75. Rxh1 {[%clk 0:00:04]}  Kxh1 {[%clk 0:00:10]} 76. Kf5 {[%clk 0:00:05]}  Kg2 {[%clk 0:00:11]} 77. Kg4 {[%clk 0:00:05]}  Kf2 {[%clk 0:00:11]} 78. Kxg5 {[%clk 0:00:04]}  Kxf3 {[%clk 0:00:11]} 1/2-1/2


[Site "https://www.chess.com"]

[Event "Titled Tuesday Blitz February 22 Early 2022"]
[White "Martinez, Shawn"]
[Black "Gracia Alvarez, Gerardo Antonio"]
[WhiteFideId "2039770"]
[BlackFideId "5109124"]
[WhiteElo "2174"]
[BlackElo "2139"]
[Result "0-1"]
[Round "09"]
[TimeControl "180+1"]
[Date "2022.02.22"]
[WhiteClock "0:01:16"]
[BlackClock "0:01:03"]

1. e4 {[%clk 0:02:51]}  c5 {[%clk 0:03:00]} 2. Nc3 {[%clk 0:02:40]}  Nc6 {[%clk 0:03:00]} 3. Bb5 {[%clk 0:02:39]}  Nd4 {[%clk 0:03:00]} 4. Nf3 {[%clk 0:02:35]}  a6 {[%clk 0:02:58]} 5. Bd3 {[%clk 0:02:30]}  g6 {[%clk 0:02:58]} 6. O-O {[%clk 0:02:26]}  Bg7 {[%clk 0:02:58]} 7. b3 {[%clk 0:02:26]}  d6 {[%clk 0:02:51]} 8. h3 {[%clk 0:02:24]}  Nxf3+ {[%clk 0:02:47]} 9. Qxf3 {[%clk 0:02:18]}  Nf6 {[%clk 0:02:48]} 10. Bb2 {[%clk 0:02:16]}  Nd7 {[%clk 0:02:43]} 11. Qg3 {[%clk 0:02:14]}  O-O {[%clk 0:02:39]} 12. Rfe1 {[%clk 0:02:13]}  b5 {[%clk 0:02:31]} 13. f4 {[%clk 0:02:10]}  Bb7 {[%clk 0:02:23]} 14. Rf1 {[%clk 0:02:01]}  Qb6 {[%clk 0:02:04]} 15. Qf2 {[%clk 0:01:52]}  Bd4 {[%clk 0:02:03]} 16. Qxd4 {[%clk 0:01:48]}  cxd4 {[%clk 0:02:01]} 17. Ne2 {[%clk 0:01:49]}  e5 {[%clk 0:01:59]} 18. f5 {[%clk 0:01:47]}  Nc5 {[%clk 0:01:54]} 19. Ng3 {[%clk 0:01:47]}  Nxd3 {[%clk 0:01:51]} 20. cxd3 {[%clk 0:01:48]}  Rac8 {[%clk 0:01:51]} 21. Rae1 {[%clk 0:01:45]}  Rc2 {[%clk 0:01:50]} 22. Bc1 {[%clk 0:01:45]}  Rxa2 {[%clk 0:01:49]} 23. h4 {[%clk 0:01:43]}  a5 {[%clk 0:01:46]} 24. h5 {[%clk 0:01:43]}  a4 {[%clk 0:01:42]} 25. h6 {[%clk 0:01:40]}  axb3 {[%clk 0:01:38]} 26. fxg6 {[%clk 0:01:35]}  hxg6 {[%clk 0:01:35]} 27. Nf5 {[%clk 0:01:33]}  gxf5 {[%clk 0:01:31]} 28. Rxf5 {[%clk 0:01:33]}  f6 {[%clk 0:01:25]} 29. Kf2 {[%clk 0:01:24]}  Kh7 {[%clk 0:01:17]} 30. Rh1 {[%clk 0:01:17]}  Ra1 {[%clk 0:01:11]} 31. g3 {[%clk 0:01:16]}  Qc6 {[%clk 0:01:03]} 0-1


[Site "https://www.chess.com"]

[Event "Titled Tuesday Blitz February 22 Early 2022"]
[White "Martins, Bruno Andre Leite"]
[Black "Begunov, Konstantin"]
[WhiteFideId "1942255"]
[BlackFideId "4118510"]
[WhiteElo "2137"]
[BlackElo "2262"]
[Result "1/2-1/2"]
[Round "09"]
[TimeControl "180+1"]
[Date "2022.02.22"]
[WhiteClock "0:00:05"]
[BlackClock "0:00:11"]

1. e4 {[%clk 0:03:00]}  c5 {[%clk 0:02:54]} 2. Nf3 {[%clk 0:02:59]}  d6 {[%clk 0:02:54]} 3. d4 {[%clk 0:03:00]}  cxd4 {[%clk 0:02:55]} 4. Nxd4 {[%clk 0:03:01]}  Nf6 {[%clk 0:02:56]} 5. Nc3 {[%clk 0:03:01]}  a6 {[%clk 0:02:56]} 6. Bd3 {[%clk 0:03:01]}  e5 {[%clk 0:02:55]} 7. Nf5 {[%clk 0:03:01]}  Bxf5 {[%clk 0:02:48]} 8. exf5 {[%clk 0:03:02]}  h6 {[%clk 0:02:48]} 9. Bc4 {[%clk 0:02:54]}  Be7 {[%clk 0:02:46]} 10. O-O {[%clk 0:02:54]}  O-O {[%clk 0:02:46]} 11. a4 {[%clk 0:02:52]}  Nc6 {[%clk 0:02:42]} 12. Be3 {[%clk 0:02:49]}  Nb4 {[%clk 0:02:39]} 13. Nd5 {[%clk 0:02:36]}  Nfxd5 {[%clk 0:02:34]} 14. Bxd5 {[%clk 0:02:37]}  Nxd5 {[%clk 0:02:33]} 15. Qxd5 {[%clk 0:02:38]}  Qc7 {[%clk 0:02:31]} 16. c4 {[%clk 0:02:36]}  Qc6 {[%clk 0:02:25]} 17. Rfd1 {[%clk 0:02:31]}  Rfc8 {[%clk 0:02:17]} 18. b3 {[%clk 0:02:30]}  Qxd5 {[%clk 0:02:05]} 19. Rxd5 {[%clk 0:02:31]}  Kf8 {[%clk 0:02:03]} 20. Kf1 {[%clk 0:02:27]}  Ke8 {[%clk 0:01:58]} 21. Ke2 {[%clk 0:02:20]}  Rc6 {[%clk 0:01:58]} 22. Kd3 {[%clk 0:02:19]}  Bg5 {[%clk 0:01:53]} 23. Ke4 {[%clk 0:02:12]}  Bxe3 {[%clk 0:01:50]} 24. fxe3 {[%clk 0:02:13]}  Ke7 {[%clk 0:01:46]} 25. g4 {[%clk 0:02:13]}  Rac8 {[%clk 0:01:42]} 26. h4 {[%clk 0:02:11]}  Rb6 {[%clk 0:01:42]} 27. Rb1 {[%clk 0:02:02]}  Rxc4+ {[%clk 0:01:38]} 28. bxc4 {[%clk 0:01:58]}  Rxb1 {[%clk 0:01:39]} 29. c5 {[%clk 0:01:54]}  Rb4+ {[%clk 0:01:35]} 30. Kf3 {[%clk 0:01:51]}  dxc5 {[%clk 0:01:27]} 31. Rxc5 {[%clk 0:01:48]}  Kd6 {[%clk 0:01:27]} 32. Rc8 {[%clk 0:01:49]}  h5 {[%clk 0:00:53]} 33. g5 {[%clk 0:01:33]}  Rxh4 {[%clk 0:00:52]} 34. Rg8 {[%clk 0:01:32]}  e4+ {[%clk 0:00:52]} 35. Kf2 {[%clk 0:01:30]}  Ke5 {[%clk 0:00:37]} 36. Rxg7 {[%clk 0:01:25]}  Kxf5 {[%clk 0:00:37]} 37. Rxf7+ {[%clk 0:01:25]}  Kxg5 {[%clk 0:00:37]} 38. Rg7+ {[%clk 0:01:14]}  Kf5 {[%clk 0:00:32]} 39. Rf7+ {[%clk 0:01:13]}  Ke5 {[%clk 0:00:32]} 40. Re7+ {[%clk 0:01:13]}  Kd5 {[%clk 0:00:29]} 41. Rxb7 {[%clk 0:01:12]}  Rh2+ {[%clk 0:00:29]} 42. Kg3 {[%clk 0:01:07]}  Re2 {[%clk 0:00:24]} 43. Rb6 {[%clk 0:00:52]}  Rxe3+ {[%clk 0:00:23]} 44. Kf2 {[%clk 0:00:51]}  Ra3 {[%clk 0:00:21]} 45. Rxa6 {[%clk 0:00:50]}  h4 {[%clk 0:00:22]} 46. Rh6 {[%clk 0:00:45]}  h3 {[%clk 0:00:22]} 47. a5 {[%clk 0:00:42]}  h2 {[%clk 0:00:22]} 48. Rxh2 {[%clk 0:00:31]}  Kd4 {[%clk 0:00:19]} 49. Rh8 {[%clk 0:00:11]}  Ra2+ {[%clk 0:00:18]} 50. Kf1 {[%clk 0:00:10]}  Rxa5 {[%clk 0:00:15]} 51. Rh3 {[%clk 0:00:06]}  Ra2 {[%clk 0:00:15]} 52. Ke1 {[%clk 0:00:06]}  Rg2 {[%clk 0:00:14]} 53. Ra3 {[%clk 0:00:05]}  Ke5 {[%clk 0:00:13]} 54. Rb3 {[%clk 0:00:04]}  Kf4 {[%clk 0:00:13]} 55. Ra3 {[%clk 0:00:04]}  Rc2 {[%clk 0:00:12]} 56. Rb3 {[%clk 0:00:04]}  Ke5 {[%clk 0:00:10]} 57. Rh3 {[%clk 0:00:04]}  Kd4 {[%clk 0:00:10]} 58. Ra3 {[%clk 0:00:04]}  Rc4 {[%clk 0:00:08]} 59. Rh3 {[%clk 0:00:04]}  Rb4 {[%clk 0:00:09]} 60. Ra3 {[%clk 0:00:04]}  Ke5 {[%clk 0:00:09]} 61. Rh3 {[%clk 0:00:02]}  Rd4 {[%clk 0:00:09]} 62. Ra3 {[%clk 0:00:02]}  Kf4 {[%clk 0:00:09]} 63. Rb3 {[%clk 0:00:02]}  Rc4 {[%clk 0:00:08]} 64. Ke2 {[%clk 0:00:02]}  Rc2+ {[%clk 0:00:08]} 65. Ke1 {[%clk 0:00:02]}  e3 {[%clk 0:00:08]} 66. Rb8 {[%clk 0:00:02]}  Kf3 {[%clk 0:00:08]} 67. Rf8+ {[%clk 0:00:03]}  Ke4 {[%clk 0:00:09]} 68. Re8+ {[%clk 0:00:03]}  Kd3 {[%clk 0:00:09]} 69. Rd8+ {[%clk 0:00:04]}  Ke4 {[%clk 0:00:10]} 70. Re8+ {[%clk 0:00:04]}  Kf3 {[%clk 0:00:10]} 71. Rf8+ {[%clk 0:00:05]}  Ke4 {[%clk 0:00:11]} 72. Re8+ {[%clk 0:00:05]} 1/2-1/2


[Site "https://www.chess.com"]